Cogmind - Beta 12 @@@ ROGUE MODE // 2023.11.19 @ 21:23:53 Player: Dosh Result: Destroyed by G-47 Trooper with Particle Gun Performance ------------- Evolutions (2) 1000 Regions Visited (6) 1200 Robots Destroyed (44) 220 Value Destroyed (1241) 1241 Prototype IDs (29) 580 Alien Tech Used (0) 0 Bonus (319) 319 TOTAL SCORE: 4560 Bonus ------- High Alert Combat Kills 19 Aligned with FarCom 300 Cogmind --------- Core Integrity 0/550 Matter 138/300 Energy 52/125 System Corruption 0% Temperature Cool (11) Movement Flying (40) Location -8/Storage Parts ------- > --- POWER (1) -------- Light Ion Engine > --- PROPULSION (3) --- Flight Unit > --- UTILITY (5) ------ Lightpack 2.0 Advanced Weight Redist. System ECM Suite > --- WEAPON (2) ------- High-powered Shotgun > --- INVENTORY (40) --- Heavy Ion Engine Nuclear Core Improved VTOL Module Targeting Computer Light Armor Plating Hardened Medium Armor Plating Light Assault Rifle Axe Axe Peak State ------------ > --- POWER ------------ Light Nuclear Core > --- PROPULSION ------- Light Treads Light Treads > --- UTILITY ---------- Lightpack 2.0 Sensor Array Signal Interpreter > --- WEAPON ----------- Heavy EM Pulse Gun Minigun > --- INVENTORY -------- Light Ion Engine Heavy Ion Engine Compact Wheel Improved VTOL Module Advanced Weight Redist. System Targeting Computer ECM Suite Light Armor Plating Heavy EM Pulse Gun Grenade Launcher Rocket Launcher [Rating: 44] Favorites ----------- Power Light Nuclear Core Engine Heavy Ion Engine Power Core Light Nuclear Core Propulsion Light Treads Treads Light Treads Wheel Wheel Flight Unit Flight Unit Utility Signal Interpreter Device Sensor Array Storage Large Storage Unit Processor Signal Interpreter Protection Light Armor Plating Weapon Heavy EM Pulse Gun Energy Gun Heavy EM Pulse Gun Ballistic Gun Minigun Launcher Grenade Launcher Slashing Weapon Axe Build | -11 -10 -10 -10 -9 -8 -8 ------- Run | Jun Mat Min Exi Min Mat Sto Slots Evolved 4 | . . . . . 4 . Power . | . . . . . . . Propulsion 1 | . . . . . 1 . Utility 3 | . . . . . 3 . Weapon . | . . . . . . . Parts Attached 38 | 6 11 2 . . 18 1 Power 4 | 1 1 1 . . 1 . Engine 3 | 1 1 . . . 1 . Core 1 | . . 1 . . . . Reactor . | . . . . . . . Propulsion 8 | 2 3 . . . 3 . Treads 2 | . 2 . . . . . Leg . | . . . . . . . Wheel 4 | 2 1 . . . 1 . Hover . | . . . . . . . Flight 2 | . . . . . 2 . Utility 12 | 1 3 . . . 7 1 Device 5 | . . . . . 4 1 Storage 3 | 1 1 . . . 1 . Processor 3 | . 2 . . . 1 . Hackware . | . . . . . . . Protection 1 | . . . . . 1 . Artifact . | . . . . . . . Weapon 14 | 2 4 1 . . 7 . Energy Gun 5 | . 4 . . . 1 . Energy Cannon . | . . . . . . . Ballistic Gun 4 | 2 . . . . 2 . Ballistic Cannon . | . . . . . . . Launcher 3 | . . 1 . . 2 . Special Weapon . | . . . . . . . Impact Weapon . | . . . . . . . Slashing Weapon 2 | . . . . . 2 . Piercing Weapon . | . . . . . . . Special Melee Weapon . | . . . . . . . Unidentified Prototypes 2 | . 1 . . . 1 . Parts Lost 13 | . 3 . . . 10 . Power 1 | . . . . . 1 . Propulsion 4 | . 1 . . . 3 . Utility 1 | . . . . . 1 . Weapon 7 | . 2 . . . 5 . Highest Loss Streak 7 | . 2 . . . 7 . To Critical Strikes . | . . . . . . . Average Slot Usage (%) 85 | . 98 98 100 100 54 54 Engine 6 | . 14 9 . . 4 9 Core 5 | . . 4 14 14 3 . Treads 17 | . 17 28 28 28 7 . Wheel 3 | . 10 . . . . . Flight 2 | . . . . . 6 9 Device 1 | . . . . . 4 14 Storage 12 | . 14 14 14 14 9 9 Processor 12 | . 13 14 14 14 10 3 Energy Gun 13 | . 24 14 14 14 2 . Ballistic Gun 1 | . 2 . . . 2 9 Launcher 5 | . . 12 14 14 2 . Naked Turns . | . . . . . . . Heaviest Build 34 | 13 34 34 31 31 19 13 Greatest Support 40 | 26 40 40 40 40 40 13 Greatest Overweight (x) 3 | 1 2 . . . 3 . Average Overweight (x) . | . . . . . . . Largest Inventory Capacity 40 | 8 15 15 15 15 40 40 Average Capacity 22 | 7 13 15 15 15 40 40 Most Carried 12 | 4 9 8 11 12 12 10 Average Carried 8 | 2 6 6 10 11 9 9 Final Capacity 40 | 8 15 15 15 15 40 40 Final Carried 12 | 4 7 8 11 12 10 9 Class Distribution -------------------- 69% | Mutant 22% | Hauler-Mutant 8% | Hauler-Skirmisher Dominant Class ---------------- Mutant | -10/Materials Mutant | -10/Mines Mutant | -10/Exiles Mutant | -9/Mines Hauler-Mutant | -8/Materials Hauler-Mutant | -8/Storage Resources | -11 -10 -10 -10 -9 -8 -8 ----------- Run | Jun Mat Min Exi Min Mat Sto Matter Collected 912 | 210 273 78 . . 268 83 Remotely . | . . . . . . . Salvage Created 1515 | . 893 260 . . 362 . Parts 87 | . 35 16 . . 36 . Haulers Intercepted 1 | . 1 . . . . . Recyclers Shooed 5 | . 2 . . . 3 . Parts Field Recycled . | . . . . . . . Retrieved Matter . | . . . . . . . Parts Self-Destructed . | . . . . . . . Prevented . | . . . . . . . Kills | -11 -10 -10 -10 -9 -8 -8 ------- Run | Jun Mat Min Exi Min Mat Sto Combat Hostiles Destroyed 32 | . 13 7 . . 12 . Melee 2 | . . . . . 2 . Guns 23 | . 13 4 . . 6 . AOE 7 | . . 3 . . 4 . Classes Destroyed 8 | . 5 1 . . 2 . Builder 3 | . 1 . . . 2 . Hauler 1 | . 1 . . . . . Recycler 3 | . 2 1 . . . . Watcher 5 | . 3 . . . 2 . Swarmer 8 | . . 3 . . 5 . Grunt 17 | . 13 4 . . . . Sentry 5 | . . . . . 5 . Hunter 2 | . . . . . 2 . Best Kill Streak 5 | . 4 5 . . 4 . Combat Bots Only 4 | . 4 3 . . 3 . Max Kills in Single Turn 2 | . 1 1 . . 2 . Gunslinging . | . . . . . . . Exploded 1 | . . 1 . . 1 . Melee 1 | . . . . . 1 . Uniques/NPCs Destroyed . | . . . . . . . Combat | -11 -10 -10 -10 -9 -8 -8 -------- Run | Jun Mat Min Exi Min Mat Sto Damage Taken 2174 | . 614 175 . . 1368 17 Core 732 | . 134 39 . . 542 17 Absorbed by Shields . | . . . . . . . Regen/Repaired (Parts) 24 | . 24 . . . . . Core Remaining (%) 65 | 100 . . . 30 . . Volleys Fired 126 | . 62 11 . . 53 . Largest 2 | . 2 2 . . 2 . Hottest 90 | . 90 75 . . 78 . Shots Fired 203 | . 119 16 1 . 67 . Gun 182 | . 119 11 1 . 51 . Cannon . | . . . . . . . Launcher 21 | . . 5 . . 16 . Special . | . . . . . . . Kinetic 81 | . 42 . . . 39 . Thermal . | . . . . . . . Explosive 21 | . . 5 . . 16 . Electromagnetic 101 | . 77 11 1 . 12 . Robot Hit Streak 15 | . 8 3 . . 15 . Robot Miss Streak 4 | . 4 2 . . 3 . Penetration Max . | . . . . . . . Secondary Targets 2 | . 2 . . . . . Max Gunslinging Chain 1 | . 1 . . . . . Shots Hit Robots 134 | . 70 8 . . 56 . Core Hits 71 | . 27 11 . . 33 . Critical Kills . | . . . . . . . Critical Parts Destroyed 1 | . . . . . 1 . Critical Strikes 5 | . 2 . . . 3 . Destroy 1 | . . . . . 1 . Corrupt 3 | . 2 . . . 1 . Sever 1 | . . . . . 1 . Melee Attacks 7 | . . . . . 7 . Impact . | . . . . . . . Slashing 7 | . . . . . 7 . Piercing . | . . . . . . . Sneak Attacks . | . . . . . . . Combat Hostiles . | . . . . . . . Follow-up Attacks . | . . . . . . . Damage Inflicted 3153 | . 1333 281 . . 1539 . Guns 1877 | . 1113 101 . . 663 . Cannons . | . . . . . . . Explosions 1081 | . 204 180 . . 697 . Melee 174 | . . . . . 174 . Ramming 21 | . 16 . . . 5 . Kinetic 808 | . 265 . . . 543 . Thermal 204 | . 204 . . . . . Explosive 877 | . . 180 . . 697 . Electromagnetic 1069 | . 848 101 . . 120 . Impact . | . . . . . . . Slashing 174 | . . . . . 174 . Piercing . | . . . . . . . Highest Corruption 1 | . 1 1 1 1 . . Average Corruption 1 | . 1 1 1 1 . . Corruption Purged . | . . . . . . . Corruption Blocked . | . . . . . . . Effects 26 | . 10 2 10 4 . . Message Errors 4 | . 1 1 1 1 . . Matter Fused 11 | . 5 1 4 1 . . Heat Flow Errors 4 | . 1 . 2 1 . . Energy Discharges 1 | . 1 . . . . . Data Loss (minor) 3 | . 2 . 1 . . . Data Loss (major) 1 | . . . . 1 . . Misfires 1 | . . . 1 . . . Alerts 1 | . . . 1 . . . Overload Shots . | . . . . . . . Overflow Damage 69 | . 36 . . . 33 . Projectiles . | . . . . . . . Explosions 41 | . 36 . . . 5 . Melee 28 | . . . . . 28 . Knockbacks . | . . . . . . . Impact . | . . . . . . . Kinetic . | . . . . . . . Secondary . | . . . . . . . Self-Inflicted Damage 259 | . 80 54 . . 125 . Shots 11 | . 2 2 . . 7 . Rammed 6 | . 4 . . . 2 . Targets Rammed 6 | . 4 . . . 2 . Kicked . | . . . . . . . Crushed . | . . . . . . . Highest Temperature 306 | . 306 54 234 274 61 . Average Temperature 65 | . 76 21 96 140 15 . Received Heat Transfer 606 | . 300 27 . . 270 9 Siege Activations . | . . . . . . . Robots Corrupted . | . . . . . . . Combat Hostiles . | . . . . . . . Parts Fried 7 | . 7 . . . . . Impact Corruptions . | . . . . . . . Robots Melted . | . . . . . . . Combat Hostiles . | . . . . . . . Parts Melted . | . . . . . . . Heat Transferred 250 | . 250 . . . . . Parts Sabotaged . | . . . . . . . Parts Stolen . | . . . . . . . Parts Stripped . | . . . . . . . Power Chain Reactions 3 | . 3 . . . . . Missiles Intercepted . | . . . . . . . Alert | -11 -10 -10 -10 -9 -8 -8 ------- Run | Jun Mat Min Exi Min Mat Sto Peak Influence 474 | . 474 364 . . 231 57 Initial 108 | . . 108 . . . 27 Average 170 | . 296 286 . . 66 38 Maximum Alert Level 2 | . 2 1 . . 1 . Low Security (%) 58 | 100 20 19 . 100 94 100 Level 1 33 | . 61 80 . . 5 . Level 2 7 | . 17 . . . . . Level 3 . | . . . . . . . Level 4 . | . . . . . . . Level 5 . | . . . . . . . High Security . | . . . . . . . Max Security . | . . . . . . . Squads Dispatched 8 | . 3 . . . 4 1 Investigation 4 | . 2 . . . 1 1 Extermination . | . . . . . . . Reinforcement 1 | . 1 . . . . . Assault . | . . . . . . . Garrison 3 | . . . . . 3 . Intercept . | . . . . . . . Searches Triggered . | . . . . . . . Construction Impeded . | . . . . . . . Haulers Reinforced . | . . . . . . . Active Scanning Responses . | . . . . . . . Cargo Convoy Interrupts . | . . . . . . . Stealth | -11 -10 -10 -10 -9 -8 -8 --------- Run | Jun Mat Min Exi Min Mat Sto Distress Signals 4 | . 1 . . . 3 . Communications Jammed . | . . . . . . . Distress Signals . | . . . . . . . Times Spotted 69 | . 25 8 . . 27 9 Peak Tracking Total 6 | . 3 3 . . 6 6 Tactical Retreats 5 | . . 1 . . 3 1 Traps | -11 -10 -10 -10 -9 -8 -8 ------- Run | Jun Mat Min Exi Min Mat Sto Traps Triggered 2 | . 2 . . . . . Indirectly . | . . . . . . . Trap Hack Attempts . | . . . . . . . Triggered . | . . . . . . . Disarmed . | . . . . . . . Reprogrammed . | . . . . . . . Reused . | . . . . . . . Traps Extracted . | . . . . . . . Installed . | . . . . . . . Triggered 1 | . 1 . . . . . Machines | -11 -10 -10 -10 -9 -8 -8 ---------- Run | Jun Mat Min Exi Min Mat Sto Machines Disabled 5 | . 4 1 . . . . Max in Single Turn 1 | . 1 1 . . . . Machines Repaired . | . . . . . . . Machines Sabotaged . | . . . . . . . Overloaded Fab Kills . | . . . . . . . Hacking | -11 -10 -10 -10 -9 -8 -8 --------- Run | Jun Mat Min Exi Min Mat Sto Machines Accessed 21 | . 6 . 5 . 8 2 Terminals 12 | . 5 . . . 5 2 Fabricators . | . . . . . . . Repair Stations 1 | . 1 . . . . . Recycling Units 1 | . . . . . 1 . Scanalyzers 1 | . . . . . 1 . Garrison Access 1 | . . . . . 1 . Total Hacks 95 | . 15 . 50 . 24 6 Successful 73 | . 9 . 50 . 13 1 Failed 22 | . 6 . . . 11 5 Catastrophic 2 | . 1 . . . 1 . Database Lockouts . | . . . . . . . Manual 1 | . . . 1 . . . Terminals 32 | . 12 . . . 14 6 Fabricators . | . . . . . . . Repair Stations 3 | . 3 . . . . . Recycling Units 3 | . . . . . 3 . Scanalyzers 6 | . . . . . 6 . Garrison Access 1 | . . . . . 1 . Terminal Hacks 62 | . 6 . 50 . 5 1 Record 50 | . . . 49 . . 1 Robot Analysis 1 | . . . . . 1 . Prototype ID Bank 2 | . 1 . . . 1 . Alert Level 3 | . 2 . . . 1 . Unreport Threat 1 | . . . . . 1 . Security Status 1 | . 1 . . . . . Transport Status 1 | . 1 . . . . . Zone Layout 2 | . 1 . . . 1 . EX-Prototype ID Bank 1 | . . . 1 . . . Fabricator Hacks . | . . . . . . . Repair Station Hacks 3 | . 3 . . . . . Scan Component 2 | . 2 . . . . . Repair 1 | . 1 . . . . . Recycling Unit Hacks 2 | . . . . . 2 . Retrieve Matter 1 | . . . . . 1 . Retrieve Components 1 | . . . . . 1 . Scanalyzer 6 | . . . . . 6 . Insert Component 3 | . . . . . 3 . Analyze 3 | . . . . . 3 . Garrison Access Hacks . | . . . . . . . Unauthorized Hacks . | . . . . . . . Terminals . | . . . . . . . Fabricators . | . . . . . . . Repair Stations . | . . . . . . . Recycling Units . | . . . . . . . Scanalyzers . | . . . . . . . Garrison Access . | . . . . . . . Data Cores Recovered . | . . . . . . . Used . | . . . . . . . Hacking Detections 13 | . 4 . . . 7 2 Full Trace Events 4 | . 1 . . . 2 1 Feedback Events . | . . . . . . . Feedback Blocked . | . . . . . . . Robot Schematics Acquired . | . . . . . . . Robots Built . | . . . . . . . Authchips . | . . . . . . . Time . | . . . . . . . Total Robot Build Rating . | . . . . . . . Part Schematics Acquired 3 | . . . . . 3 . Parts Built . | . . . . . . . Authchips . | . . . . . . . Time . | . . . . . . . Total Part Build Rating . | . . . . . . . Parts Repaired 1 | . 1 . . . . . Time 26 | . 26 . . . . . Parts Recycled . | . . . . . . . Recycled Matter . | . . . . . . . Retrieved Matter . | . . . . . . . Retrieved Components 3 | . . . . . 3 . Parts Scanalyzed 3 | . . . . . 3 . Part Schematics Acquired 3 | . . . . . 3 . Parts Damaged 1 | . . . . . 1 . Bothacking | -11 -10 -10 -10 -9 -8 -8 ------------ Run | Jun Mat Min Exi Min Mat Sto Used RIF Installer . | . . . . . . . Robots Hacked . | . . . . . . . Non-combat . | . . . . . . . Combat . | . . . . . . . Robot Hacks Applied . | . . . . . . . Relay Couplers Released . | . . . . . . . Fabnet Peak Effective % . | . . . . . . . Robots Rewired . | . . . . . . . Allies Hacked . | . . . . . . . Hacks Repelled . | . . . . . . . Allies | -11 -10 -10 -10 -9 -8 -8 -------- Run | Jun Mat Min Exi Min Mat Sto Total Allies . | . . . . . . . Largest Group . | . . . . . . . Highest-Rated Group . | . . . . . . . Highest-Rated Ally . | . . . . . . . Total Orders . | . . . . . . . Ally Attacks . | . . . . . . . Total Damage . | . . . . . . . Kills . | . . . . . . . Allies Corrupted . | . . . . . . . Allies Melted . | . . . . . . . Intel | -11 -10 -10 -10 -9 -8 -8 ------- Run | Jun Mat Min Exi Min Mat Sto Robot Analysis Total 1 | . . . . . 1 . Derelict Logs Recovered 2 | . . 1 . 1 . . Drone Launches . | . . . . . . . Drone Recoveries . | . . . . . . . Exploration | -11 -10 -10 -10 -9 -8 -8 ------------- Run | Jun Mat Min Exi Min Mat Sto Turns Passed 4389 | 61 1425 234 1008 308 1274 79 Spaces Moved 2966 | 57 874 125 628 189 919 174 Core 76 | 13 . . . . 63 . Treads 1733 | . 526 125 628 189 265 . Legs . | . . . . . . . Wheels 400 | 44 348 . . . 8 . Hover . | . . . . . . . Flight 757 | . . . . . 583 174 Fastest Speed 34 | 50 90 160 160 160 34 40 Average Speed 119 | 85 133 160 160 160 82 40 Slowest Speed 200 | 100 160 160 160 160 200 40 Overloaded Moves . | . . . . . . . Propulsion Burnouts . | . . . . . . . Robots Hopped 12 | . . . . . 5 7 Cave-ins Triggered . | . . . . . . . Exploration Rate (%) 51 | 4 96 29 94 52 57 29 Regions Visited 6 Branch Regions 4 Pre-discovered Areas 1 | . . . 1 . . . Known Exits Taken 5 | . 1 1 1 1 1 . Unknown Exits Taken 1 | 1 . . . . . . Scrap Searched . | . . . . . . . Spaces Dug . | . . . . . . . Terrain Destroyed 117 | . 11 40 . . 66 . Melee . | . . . . . . . Projectile . | . . . . . . . AOE 117 | . 11 40 . . 66 . Terrain Rammed . | . . . . . . . Walls Destroyed . | . . . . . . . Machines Disabled . | . . . . . . . Actions | -11 -10 -10 -10 -9 -8 -8 --------- Run | Jun Mat Min Exi Min Mat Sto Total 3591 | 66 1019 144 631 195 1359 177 Wait 418 | . 53 3 . 6 348 8 Move 2938 | 56 873 124 627 188 908 162 Hop 10 | . . . . . 5 5 Pick Up 24 | 4 8 1 1 1 9 . Fast Attach 16 | 6 5 1 . . 4 . Attach 21 | . 5 1 . . 14 1 Detach 15 | . 3 2 . . 9 1 Swap 1 | . 1 . . . . . Drop 7 | . 5 1 . . 1 . Fire 126 | . 62 11 . . 53 . Melee 6 | . . . . . 6 . Ram 6 | . 4 . . . 2 . Kick . | . . . . . . . Crush . | . . . . . . . Escape Stasis . | . . . . . . . Rewire 3 | . . . 3 . . . Trap . | . . . . . . . Miscellaneous . | . . . . . . . Route ------- -11/Junkyard -10/Materials (discovered 4 exits: *Mat x3 / *Min) -10/Mines (discovered 3 exits: *Mat x2 / *Exi) -10/Exiles (discovered 2 exits: *Min x2) -9/Mines -8/Materials (discovered 2 exits: [*Fac] / *Sto) -8/Storage History --------- Turn | Location | Event 10 | -11/Junkyard | Discovered new exit (range 15) 62 | -11/Junkyard | Entered Materials 302 | -10/Materials | Build established: Mutant 305 | -10/Materials | Discovered new exit (range 13) 470 | -10/Materials | Repaired Com. Wheel 538 | -10/Materials | Discovered new exit (range 14) 594 | -10/Materials | Core integrity fell below 50% 761 | -10/Materials | Discovered new exit (range 14) 902 | -10/Materials | Discovered new exit (range 3) 910 | -10/Materials | Identified exit to Materials 1486 | -10/Materials | Identified exit to Mines 1487 | -10/Materials | Entered Mines 1541 | -10/Mines | Discovered exit to Materials (range 12) 1549 | -10/Mines | Identified exit to Exiles 1679 | -10/Mines | Discovered exit to Materials (range 5) 1711 | -10/Mines | Deemed a non-threat by the Exiles lab entrance 1721 | -10/Mines | Entered Exiles 1749 | -10/Exiles | Discovered new exit (range 15) 1769 | -10/Exiles | Identified exit to Mines 1803 | -10/Exiles | Met 8R-AWN 1825 | -10/Exiles | Met EX-HEX 1893 | -10/Exiles | Met EX-BIN 1919 | -10/Exiles | Aligned with FarCom system 1920 | -10/Exiles | Given EX-Vault access code 1989 | -10/Exiles | Opened EX-Vault 2007 | -10/Exiles | Found Lightpack 2.0 2038 | -10/Exiles | Warned to stay clear of 0b10 Research branches 2084 | -10/Exiles | Met EX-DEC 2112 | -10/Exiles | Learned location of Zion (-6) 2161 | -10/Exiles | Discovered exit to Mines (range 10) 2350 | -10/Exiles | Visited The Gauntlet 2729 | -10/Exiles | Left Exiles lab with Lightpack 2.0 2729 | -10/Exiles | Entered Mines 2834 | -9/Mines | Received a Rocket Launcher from a helpful Derelict 2983 | -9/Mines | Discovered new exit (range 7) 2991 | -9/Mines | Identified exit to Materials 3037 | -9/Mines | Entered Materials 3037 | -8/Materials | Evolved 4 slots: Propulsion x1, Utility x3 3038 | -8/Materials | Identified exit to Storage 3347 | -8/Materials | Build established: Hauler-Skirmisher 3543 | -8/Materials | Garrison activated, responded to threat 3614 | -8/Materials | Core integrity fell below 50% 3637 | -8/Materials | Lost 7 parts (1p2n1u3w) 3676 | -8/Materials | Core integrity fell below 20% 3768 | -8/Materials | Build established: Hauler-Mutant 4281 | -8/Materials | Discovered new exit (range 5) 4311 | -8/Materials | Entered Storage 4390 | -8/Storage | Destroyed by G-47 Trooper with Particle Gun Last Messages --------------- 04245_ W-25 Informer destroyed. 04252_ Connecting with Recycling Unit... 04275_ Connecting with Terminal... 04281_ EXIT=FOUND 04303_ Acquired 29 matter. LOCATION=STORAGE GOAL=ESCAPE 04311_ Receiving FarCom transmissions... 04315_ Connecting with Terminal... >>Query(Storage) Holding area for both raw materials and components based on old technology. 04327_ Acquired 83 matter. 04343_ K-01 Serf cleans the Transfer Shaft. 04344_ K-01 Serf cleans the Recycling Unit. 04349_ Discarded Adv. Targeting Computer. 04370_ K-01 Serf cleans the Storage Shell. 04380_ Connecting with Door Terminal... 04380_ ALERT: Suspicious activity at Terminal S009. Dispatching Investigation squad. Map ----- +----------------------------------------------------+ | | | | | | | | | | | | | | | | | | | | | | | ?????????????????????????????????????????????????? | | ?????????????????????????????????????????????????? | | ?????????????????????????????????????????????????? | | ?????????????????????????????????????????????????? | | ?????????????????????????????????????????????????? | | ?????????????????????????????????????????????????? | | ?????????????????????????????????????????????????? | | ?????????????????????????????????????????????????? | | ?????????????????????????????????????????????????? | | ?????????????????????????????????????????????????? | | ??????????? ??????????????????????????????????? | | ??????????? #?????????????????????????????????? | | ??????????# #########+##########??????????????? | | ??????????# g #??????????????? | | ??????????+ @ #??????????????? | | ??????????# u a #??????????????? | | ??????????# ################# #??????????????? | | ??????????# #???????????????# #??????????????? | | ??????????# g #???????????????# #??????????????? | | ########### #???????????????# #?Y????????????? | | # # g #???????????????# #??????????????? | | # """ # +???????????????# #??????????????? | | # """"?" # #??????########## #??????????????? | | # "????" # #??????# # g#??????????????? | | # "????" / #??????# # #??????????????? | | # "?"""" # #??????# # ######?????????? | | # """ ### #??????# # g g g ??? | | # #?# #??????# + #######????????? | | #########+#?# #??????# # #??????????????? | | ??#"""#?# #?# #??????# # #??????????????? | | ?##"Y"### #?# #??????# # #??????????????? | | ?# # ### ##?????# # #??????????????? | | ?# # ## ###########+#### #??????????????? | | ?# """ + #??#####??????????????? | | ?# """ # ## #########+###?????????????????????? | | ?# """ # ###+##???????# T#??????????????????????? | | ?# # # ???????#"##??????????????????????? | | ?##+##+## # #???????????????????????????????? | | ??# # #???????????????????????????????? | +----------------------------------------------------+ Best States ------------- Heat Dissipation 31 Energy Generation 14 Energy Capacity 280 Matter Stores 300 Matter Capacity 300 Sight Range 16 Robot Scan Range 14 Terrain Scan Density 10 ECM Strength 1 Additional Mass Support 9 Armor Coverage 150 Evasion (%) 63 Targeting Accuracy 8 Recoil Reduction 2 Item Schematics ----------------- Imp. VTOL Module | -8/Materials | Scanalyzed ECM Suite | -8/Materials | Scanalyzed Adv. Weight Redist. System | -8/Materials | Scanalyzed Robot Schematics ------------------ None Fabricated ------------ Nothing Alien Tech Used ----------------- None Achievements -------------- Hey, That's Mine! Challenges ------------ None Game ------ Seed ActiveTrackerFlail Manual? 0 Play Time 00:39:47 Cumulative 14.1 hours Start 2023.11.19 @ 19:14:16 End 2023.11.19 @ 21:23:53 Sessions 1 Manual Loads 0 Difficulty Rogue Special Mode None Game No. 30 Rogue 30 Adventurer 0 Explorer 0 Win Type - Total 0 Types 0/0/0/0/0/0/0/0/0 Lore% 17 Gallery% 20 Achievement% 17 Wizard Run 0 Options --------- ASCII 0 Keyboard 1 Movement Numpad Keybinds 0 Fullscreen 2 Font 18/SmallcapsGlow Map View 76x50 Tactical HUD 1 Map Filters NONE Filters NONE Steam 1 RUN: 20339d15-1144-4c62-8a1f-8b4f5d9ae528